fUSD/lending_fUSD_20250225
["ID","MTS","AMOUNT","RATE_DAILY","PERIOD"]
[354456713,1740515443396,-170.8,0.00047547,30]
[354456714,1740515443406,-430.85865386,0.00047611,28]
[354456715,1740515443416,-390.49,0.00047626,2]
[354456716,1740515443425,-440.51,0.00047671,30]
[354456717,1740515443434,-440.51,0.00047671,30]
[354456718,1740515443444,-440.51,0.00047671,30]
[354456719,1740515443454,-440.51,0.00047671,30]
[354456720,1740515443463,-440.51,0.00047671,30]
[354456721,1740515443475,-440.51,0.00047671,30]
[354456722,1740515443485,-776.49,0.00047671,30]
[354456723,1740515443494,-776.49,0.00047671,30]
[354456724,1740515443504,-440.51,0.00047671,30]
[354456725,1740515443513,-776.49,0.00047671,30]
[354456726,1740515443528,-776.49,0.00047671,30]
[354456727,1740515443537,-1692.5,0.00047671,30]
[354456728,1740515443547,-440.51,0.00047671,30]
[354456729,1740515443556,-440.51,0.00047671,30]
[354456730,1740515443567,-440.51,0.00047671,30]
[354456731,1740515443576,-440.51,0.00047671,30]
[354456732,1740515443585,-161.0,0.00047682,90]
[354456733,1740515443596,-170.8,0.00047684,30]
[354456734,1740515443605,-8404.44,0.000477,34]
[354456735,1740515443614,-456.88919478,0.00047721,15]
[354456736,1740515443623,-977.61,0.00047733,30]
[354456737,1740515443632,-977.61,0.00047733,30]
[354456738,1740515443641,-500.0,0.00047759,2]
[354456739,1740515443650,-500.0,0.00047759,2]
[354456740,1740515443661,-500.0,0.00047759,2]
[354456741,1740515443670,-500.0,0.00047759,2]
[354456742,1740515443680,-500.0,0.00047759,2]
[354456743,1740515443689,-461.8296,0.00047759,2]
[354456744,1740515443698,-5000.0,0.000478,120]
[354456745,1740515443707,-1500.0,0.000478,17]
[354456746,1740515443716,-1187323.73313194,0.000478,120]
[354456747,1740515443728,-6023.705487,0.000478,14]
[354456748,1740515443737,-6023.705487,0.000478,14]
[354456749,1740515443747,-151.0,0.000478,14]
[354456750,1740515443755,-170.8,0.00047821,30]
[354456751,1740515443765,-763.16208349,0.0004788,100]
[354456752,1740515443774,-5000.0,0.000479,120]
[354456753,1740515443783,-776.1198516,0.000479,120]
[354456754,1740515443792,-300.0,0.000479,17]
[354456755,1740515443801,-500.0,0.00047957,120]
[354456756,1740515443811,-170.8,0.00047958,30]
[354456757,1740515443820,-450.0,0.0004797,3]
[354456758,1740515443829,-5593.21470245,0.00047973,120]
[354456759,1740515443838,-150.79,0.0004799,2]
[354456760,1740515443847,-157.52225751,0.0004799,7]
[354456761,1740515443857,-1000.0,0.00047999,120]
[354456762,1740515443867,-1000.0,0.00047999,2]
[354456763,1740515443875,-1000.0,0.00047999,2]
[354456764,1740515443884,-97696.78809836,0.00048,48]
[354456765,1740515443905,-548.00952576,0.00048,48]
[354456766,1740515445057,-385.7641215,0.00030912,2]
[354456767,1740515445070,-861.81303237,0.00030912,2]
[354456768,1740515445080,-1755.20237588,0.00048,48]
[354456769,1740515445090,-1822.65802605,0.00048,43]
[354456770,1740515445101,-1007.1176519,0.00048,43]
[354456771,1740515445125,-1935.87252877,0.00048,43]
[354456772,1740515445136,-444.82607685,0.00048,43]
[354456773,1740515445159,-1328.65337072,0.00048,43]
[354456774,1740515445171,-400.1175,0.00048,43]
[354456775,1740515445183,-12588.25293923,0.00048,43]
[354456788,1740515445683,-11017.7906506,0.00048,43]
[354456789,1740515445695,-502.49912,0.00048,43]
[354456790,1740515445706,-858.6849167,0.00048,43]
[354456791,1740515445717,-3471.75,0.00048,43]
[354456799,1740515447238,-325.30403825,0.00048,43]
[354456800,1740515447250,-675.2752,0.00048,43]
[354456801,1740515447261,-4811.99274643,0.00048,43]
[354456802,1740515447273,-58809.2052345,0.00048,43]
[354456803,1740515447282,-34416.65191144,0.00048,51]
[354456808,1740515448004,-1247.57715387,0.00035114,2]
[354456809,1740515448013,-65583.34808856,0.00048,51]
[354456810,1740515448023,-431530.399053,0.00048,120]
[354456811,1740515448035,-393.52656003,0.00048,120]
[354456812,1740515448046,-468.7850905,0.00048,120]
[354456813,1740515448095,-11964.65857952,0.00048,120]
[354456814,1740515448305,-322.91220952,0.00048,120]
[354456815,1740515448333,-1589.99999987,0.00048,120]
[354456816,1740515448350,-308.1,0.00048,120]
[354456817,1740515448363,-3256.43017848,0.00048,120]
[354456818,1740515448441,-629.26328558,0.00048,120]
[354456830,1740516631959,-176.11,0.00026849,2]
[354456831,1740516631971,-504.6164723,0.000283,2]
[354456832,1740516632018,-888.88,0.000283,2]
[354456833,1740516632132,-266.33607,0.000283,2]
[354456834,1740516632308,-274.81357556,0.000283,2]
[354456835,1740516632363,-31.35388214,0.000283,2]
[354456836,1740516632372,-278.47111142,0.00034,120]
[354456837,1740516632384,-424.82888858,0.00034,120]
[354456838,1740516632393,-343.44,0.00044284,2]
[354456839,1740516632403,-561.48111142,0.000447,7]
[354456844,1740516638266,-438.51888858,0.000447,7]
[354456845,1740516638276,-4686.0,0.00045251,117]
[354456846,1740516638286,-1000.0,0.000458,7]
[354456847,1740516638295,-300.0,0.00045899,5]
[354456848,1740516638305,-5000.0,0.000459,120]
[354456849,1740516638315,-150.08,0.00046094,2]
[354456850,1740516638324,-635.89036848,0.00046112,120]
[354456851,1740516638333,-17772.74,0.00046195,2]
[354456852,1740516638342,-1133.46,0.00046195,2]
[354456853,1740516638351,-392.24,0.00046215,2]
[354456854,1740516638360,-155.65,0.00046222,2]
[354456855,1740516638369,-250.0,0.00046222,2]
[354456856,1740516638378,-2000.0,0.00046301,120]
[354456857,1740516638387,-500.0,0.00046351,3]
[354456858,1740516638396,-175.66,0.00046443,2]
[354456859,1740516638405,-150.0,0.00046489,30]
[354456860,1740516638415,-1000.0,0.00046495,2]
[354456861,1740516638424,-151.0,0.000465,14]
[354456862,1740516638433,-151.0,0.000465,14]
[354456863,1740516638443,-307.186438,0.000465,14]
[354456864,1740516638452,-307.186438,0.000465,14]
[354456865,1740516638461,-343.44,0.00046548,2]
[354456866,1740516638470,-150.0,0.00046626,30]
[354456867,1740516638479,-150.0,0.00046763,30]
[354456868,1740516638488,-500.0,0.00046767,30]
[354456869,1740516638498,-4032.66571066,0.000469,120]
[354456872,1740516640572,-271.56309143,0.000469,120]
[354456873,1740516640844,-353.93823867,0.000469,120]
[354456874,1740516640863,-341.83295924,0.000469,120]
[354456875,1740516640872,-150.0,0.000469,30]
[354456876,1740516640881,-225.5870001,0.000469,78]
[354456877,1740516640893,-280.18352265,0.000469,78]
[354456878,1740516640904,-193.58247725,0.000469,78]
[354456879,1740516640913,-225.25708954,0.000469,10]
[354456880,1740516640923,-318.16833637,0.000469,7]
[354456881,1740516640934,-681.83166363,0.000469,7]
[354456882,1740516640944,-474.251611,0.00047,30]
[354456883,1740516640954,-151.0,0.00047,14]
[354456884,1740516640963,-151.0,0.00047,14]
[354456885,1740516640972,-307.186438,0.00047,14]
[354456886,1740516640984,-307.186438,0.00047,14]
[354456887,1740516640993,-1000.0,0.00047,11]
[354456888,1740516641003,-1000.0,0.00047,9]
[354456889,1740516641012,-1004.0,0.00047,8]
[354456890,1740516641021,-1000.0,0.00047,7]
[354456891,1740516641030,-1000.0,0.00047,7]
[354456892,1740516641039,-1000.0,0.00047,6]
[354456893,1740516641048,-150.0,0.00047037,30]
[354456894,1740516641058,-1343.8568884,0.00047039,4]
[354456895,1740516641067,-500.0,0.00047041,30]
[354456896,1740516641076,-250.0,0.000471,2]
[354456897,1740516641085,-150.0,0.00047174,30]
[354456898,1740516641095,-150.0,0.00047311,30]
[354456899,1740516641104,-955.3,0.00047315,30]
[354456900,1740516641114,-314.3,0.00047403,120]
[354456901,1740516641123,-150.0,0.00047448,30]
[354456902,1740516641132,-786.0,0.00047452,120]
[354456903,1740516641142,-3379.0,0.00047452,120]
[354456904,1740516641151,-150.022606,0.00047496,120]
[354456905,1740516641160,-150.022606,0.00047496,120]
[354456906,1740516641171,-150.022606,0.00047497,120]
[354456907,1740516641180,-150.022606,0.00047497,120]
[354456908,1740516641190,-150.022606,0.00047498,120]
[354456909,1740516641200,-150.022606,0.00047498,120]
[354456910,1740516641209,-150.0,0.00047585,30]
[354456911,1740516641219,-150.0,0.00047722,30]
[354456912,1740516641228,-151.0,0.000478,14]
[354456913,1740516641237,-151.0,0.000478,14]
[354456914,1740516641246,-307.186438,0.000478,14]
[354456915,1740516641256,-307.186438,0.000478,14]
[354456916,1740516641265,-317.24269666,0.000478,30]
[354456917,1740516641274,-1532.1281,0.000478,62]
[354456918,1740516641284,-150.0,0.00047859,30]
[354456919,1740516641293,-374.27314617,0.00047886,15]
[354456920,1740516641302,-317.8798,0.0004789,2]
[354456921,1740516641313,-207.04884109,0.00047896,20]
[354456922,1740516641322,-5000.0,0.000479,120]
[354456923,1740516641331,-278.9276,0.000479,2]
[354456924,1740516641341,-246.20494508,0.000479,30]
[354456925,1740516641350,-151.32429084,0.000479,23]
[354456926,1740516641359,-348.34438984,0.000479,2]
[354456927,1740516641379,-291.16243368,0.000479,2]
[354456928,1740516641395,-582.0898887,0.000479,120]
[354456929,1740516641413,-4281.6873672,0.000479,2]
[354456930,1740516641432,-1211.0,0.00047977,64]
[354456931,1740516641448,-37742.74292285,0.0004798,4]
[354456947,1740516645285,-150.0,0.00047037,30]
[354456948,1740516645295,-640.30882354,0.0004798,4]
[354456949,1740516645306,-4450.0,0.0004798,4]
[354456950,1740516645335,-1472.65091297,0.0004798,4]
[354456955,1740516645994,-699.9535848,0.0004798,4]
[354456956,1740516646005,-267.433,0.0004798,4]
[354456973,1740517591083,315.25,9.801e-05,2]
[354456974,1740517749346,500.0,0.0002,120]
[354456979,1740517832555,-500.0,0.00023645,2]
[354456980,1740517832565,-341.41607675,0.00023645,2]
[354456981,1740517832574,-302.0,0.0002365,30]
[354456982,1740517832584,-181.12892325,0.000244,120]
[354456983,1740517832596,-318.87107675,0.000244,120]
[354456984,1740517832606,-162.66,0.00026849,2]
[354456985,1740517832615,-500.0,0.000284,120]
[354456986,1740517832624,-500.0,0.0003,120]
[354456987,1740517832634,-461.83,0.00034,120]
[354456988,1740517832643,-150.0,0.00034988,2]
[354456989,1740517832652,-305.413003,0.00034989,2]
[354456990,1740517832661,-2631.47382305,0.00034989,2]
[354456991,1740517832672,-6537.26456995,0.00034989,2]
[354456992,1740517832681,-6741.48543005,0.00034989,2]
[354456993,1740517832693,-1162.23389795,0.00034989,2]
[354456994,1740517832702,-150.0,0.000374,2]
[354456995,1740517832711,-305.413003,0.00038979,2]
[354456996,1740517832720,-9168.738393,0.00038979,2]
[354456997,1740517832730,-7903.719328,0.00038979,2]
[354456998,1740517832739,-500.0,0.0004,120]
[354456999,1740517832748,-150.0,0.000405,2]
[354457000,1740517832757,-305.413003,0.00041095,2]
[354457001,1740517832767,-305.413003,0.00041095,2]
[354457002,1740517832777,-9168.738393,0.00041095,2]
[354457003,1740517832786,-9168.738393,0.00041095,2]
[354457004,1740517832795,-3768.94573289,0.00041095,2]
[354457005,1740517832807,-936.67725654,0.00041095,2]
[354457006,1740517832818,-563.32274346,0.00041095,2]
[354457007,1740517832837,-417.2299355,0.00041095,2]
[354457008,1740517832849,-622.1302618,0.00041095,2]
[354457009,1740517832861,-286.6875858,0.00041095,2]
[354457010,1740517832872,-496.769991,0.00041095,2]
[354457011,1740517832883,-768.21492302,0.00041095,2]
[354457012,1740517832895,-43.74089799,0.00041095,2]
[354457014,1740517832905,-389.51310207,0.00041095,2]
[354457016,1740517832916,-348.816881,0.00041095,2]
[354457018,1740517832926,-269.46,0.00041095,2]
[354457020,1740517832938,-1489.07100804,0.00041095,2]
[354457027,1740517832995,-661.5,0.00041095,2]
[354457032,1740517833024,-272.80967872,0.00041095,2]
[354457157,1740517838049,-936.43610027,0.00041095,2]
[354457158,1740517838201,-3536.1125579,0.00041095,2]
[354457159,1740517838210,-305.413003,0.00041369,2]
[354457160,1740517838219,-305.413003,0.00041369,2]
[354457161,1740517838229,-7903.719328,0.00041369,2]
[354457162,1740517838239,-7903.719328,0.00041369,2]
[354457163,1740517838250,-299.99,0.00041369,120]
[354457164,1740517838259,-305.413003,0.00041643,2]
[354457165,1740517838268,-5137.02484862,0.00041643,2]
[354457166,1740517838283,-2766.69447938,0.00041643,2]
[354457167,1740517838294,-405.90197688,0.00041916,5]
[354457168,1740517838303,-1234.30604374,0.00041916,5]
[354457207,1740517840231,-737.88810179,0.00041916,5]
[354457225,1740517840406,-24454.1824224,0.00041916,5]
[354457226,1740517840416,-305.413003,0.00041917,2]
[354457227,1740517840426,-7903.719328,0.00041917,2]
[354457228,1740517840436,-305.413003,0.00042191,2]
[354457229,1740517840446,-7903.719328,0.00042191,2]
[354457230,1740517840456,-305.413003,0.00042465,2]
[354457231,1740517840465,-7903.719328,0.00042465,2]
[354457232,1740517840475,-500.0,0.00043808,2]
[354457233,1740517840484,-309.09,0.00044383,2]
[354457234,1740517840494,-251.44,0.00044574,120]
[354457235,1740517840504,-1000.0,0.000447,7]
[354457236,1740517840514,-710.0,0.00045,4]
[354457237,1740517840524,-150.08,0.00045659,2]
[354457238,1740517840533,-165.26,0.00045696,2]
[354457239,1740517840543,-181.07,0.00045888,2]
[354457240,1740517840552,-4755.66245453,0.000459,120]
[354457241,1740517840561,-155.65,0.00046301,2]
[354457242,1740517840570,-17483.53,0.00046301,2]
[354457244,1740517840579,-1340.63055806,0.00046419,2]
[354457245,1740517840587,-1000.0,0.00046517,2]
[354457246,1740517840598,-300.23,0.00046575,30]
[354457247,1740517840607,-300.34,0.00046575,30]
[354457248,1740517840616,-300.0,0.00046575,30]
[354457249,1740517840626,-309.09,0.00046647,2]
[354457250,1740517840635,-208.79,0.00046674,120]
[354457251,1740517840645,-776.49,0.00046712,30]
[354457252,1740517840655,-776.49,0.00046712,30]
[354457253,1740517840664,-776.22,0.00046712,30]
[354457254,1740517840674,-207.04884109,0.0004689,19]
[354457255,1740517840683,-442.03512067,0.0004689,15]
[354457256,1740517840693,-5000.0,0.000469,120]
[354457257,1740517840703,-244.48254801,0.000469,25]
[354457258,1740517840712,-1678.0,0.000469,7]
[354457259,1740517840722,-734.30848471,0.000469,15]
[354457260,1740517840731,-160.53936768,0.00046973,10]
[354457261,1740517840741,-455.3517067,0.00046973,10]
[354457262,1740517840750,-500.0,0.00046973,2]
[354457263,1740517840759,-277.8086788,0.00046973,10]
[354457264,1740517840768,-307.4377379,0.00046973,10]
[354457265,1740517840777,-170.5485591,0.00046973,10]
[354457266,1740517840786,-151.61097624,0.00046973,10]
[354457267,1740517840796,-151.49271009,0.00046973,10]
[354457268,1740517840805,-160.76194311,0.00046973,10]
[354457269,1740517840814,-205.37989371,0.00046973,10]
[354457270,1740517840823,-7398.42,0.0004698,2]
[354457271,1740517840832,-7398.42,0.0004698,2]
[354457272,1740517840841,-8917.8385042,0.0004699,4]
[354457288,1740517847089,-708.91030567,0.0004699,4]
[354457289,1740517847110,-8737.26754043,0.0004699,4]
[354457290,1740517847120,-559.482,0.0004699,79]
[354457291,1740517847130,-3953.58323615,0.0004699,4]
[354457297,1740518768457,7900.33765061,8e-05,2]
[354457299,1740518817147,-1906.69665276,0.00011,2]
[354457300,1740518887736,1188.15061021,9.5e-05,2]
[354457322,1740519032397,-500.0,0.00017,2]
[354457323,1740519032409,-150.0,0.000187,2]
[354457324,1740519032420,-150.0,0.000187,2]
[354457325,1740519032431,-550.0,0.00021,2]
[354457326,1740519032441,-440.30621719,0.00021,2]
[354457327,1740519032451,-1073.34539406,0.000228,2]
[354457328,1740519032461,-199.26339684,0.000229,2]
[354457329,1740519032472,-600.0,0.00023,2]
[354457330,1740519032481,-1073.34539405,0.00023561,2]
[354457331,1740519032491,-300.0,0.0002366,2]
[354457332,1740519032500,-4593.35727974,0.00023661,2]
[354457333,1740519032510,-1926.40249433,0.00023661,2]
[354457334,1740519032522,-10057.09750567,0.00023661,2]
[354457335,1740519032531,-231.58030951,0.00023661,2]
[354457336,1740519032543,-372.20705928,0.00023661,2]
[354457337,1740519032553,-401.34905137,0.000239,3]
[354457338,1740519032563,-13585.43485056,0.00024,30]
[354457339,1740519032572,-401.34905113,0.00024831,4]
[354457340,1740519032583,-650.0,0.00025,2]
[354457341,1740519032592,-615.0,0.0002537,2]
[354457342,1740519032604,-401.34905113,0.00025762,4]
[354457343,1740519032617,-401.34905113,0.00026693,4]
[354457344,1740519032627,-161.05,0.00026849,2]
[354457345,1740519032637,-700.0,0.00027,2]
[354457346,1740519032648,-401.34905113,0.00027624,4]
[354457347,1740519032658,-515.526369,0.00028,60]
[354457348,1740519032667,-401.34905113,0.00028555,5]
[354457349,1740519032677,-401.34905113,0.00029486,5]
[354457350,1740519032691,-401.34905113,0.00030417,5]
[354457351,1740519032701,-97.11114538,0.00031348,6]
[354457352,1740519032735,-304.23790575,0.00031348,6]
[354457353,1740519032746,-401.34905113,0.00032279,6]
[354457354,1740519032757,-401.34905113,0.0003321,6]
[354457355,1740519032767,-299.99,0.00033753,30]
[354457356,1740519032778,-915.46,0.00034,120]
[354457357,1740519032788,-401.34905113,0.00034141,6]
[354457358,1740519032798,-3155.48306075,0.00034649,2]
[354457359,1740519032810,-668.88676737,0.00034649,2]
[354457360,1740519032823,-9587.5,0.00034649,2]
[354457361,1740519032849,-489.17253924,0.00034649,2]
[354457362,1740519032877,-1411.8104,0.00034649,2]
[354457363,1740519032890,-880.53352,0.00034649,2]
[354457375,1740519033094,-3806.60371264,0.00034649,2]
[354457377,1740519033104,-1594.66883388,0.000349,15]
[354457379,1740519033115,-199.26339684,0.000349,2]
[354457381,1740519033126,-290.240639,0.00034989,2]
[354457383,1740519033137,-300.34316867,0.00035,5]
[354457385,1740519033148,-1243.50824897,0.00035,2]
[354457387,1740519033160,-738.26268141,0.00035,2]
[354457389,1740519033170,-401.34905113,0.00035072,7]
[354457391,1740519033180,-250.0,0.00035933,2]
[354457393,1740519033191,-401.34905113,0.00036003,7]
[354457395,1740519033202,-162.76,0.00036323,2]
[354457397,1740519033214,-401.34905113,0.00036934,7]
[354457399,1740519033225,-244.11005649,0.00037397,30]
[354457401,1740519033235,-161.05,0.00037863,2]
[354457403,1740519033245,-401.34905113,0.00037866,8]
[354457405,1740519033256,-401.34905113,0.00038797,8]
[354457407,1740519033267,-290.240639,0.00038979,2]
[354457409,1740519033276,-401.34905113,0.00039728,8]
[354457411,1740519033285,-800.0,0.0004,120]
[354457413,1740519033294,-401.34905113,0.00040659,8]
[354457415,1740519033304,-290.240639,0.00041095,2]
[354457417,1740519033315,-290.240639,0.00041095,2]
[354457419,1740519033324,-290.240639,0.00041369,2]
[354457421,1740519033334,-290.240639,0.00041369,2]
[354457423,1740519033343,-401.34905113,0.0004159,9]
[354457425,1740519033353,-290.240639,0.00041643,2]
[354457427,1740519033362,-290.240639,0.00041917,2]
[354457429,1740519033371,-430.0,0.00042,120]
[354457431,1740519033383,-579.0,0.00042,2]
[354457433,1740519033393,-290.240639,0.00042191,2]
[354457435,1740519033403,-290.240639,0.00042465,2]
[354457437,1740519033412,-401.34905113,0.00042521,9]
[354457439,1740519033422,-972.0,0.000427,5]
[354457441,1740519033432,-214.0,0.00043,7]
[354457443,1740519033441,-477.73,0.00043409,2]
[354457445,1740519033451,-401.34905113,0.00043452,9]
[354457447,1740519033460,-400.0,0.00044,120]
[354457449,1740519033469,-16499.83,0.0004433,2]
[354457451,1740519033479,-401.34905113,0.00044383,10]
[354457453,1740519033488,-467.7,0.00044566,120]
[354457455,1740519033498,-150.0,0.000447,2]
[354457457,1740519033511,-279.18240592,0.00044973,10]
[354457459,1740519033521,-165.0835587,0.00044973,10]
[354457461,1740519033531,-1000.0,0.00045,120]
[354457463,1740519033541,-163.0,0.00045,90]
[354457465,1740519033552,-1677.3988389,0.00045,90]
[354457467,1740519033564,-9275.78976325,0.00045,90]
[354457477,1740519033660,-802.31557787,0.00045,90]
[354457480,1740519033671,-4548.92633695,0.00045,90]
[354457482,1740519033691,-4137.13729955,0.00045,90]
[354457485,1740519033703,-1058.33872883,0.00045,90]
[354457487,1740519033715,-3320.7,0.00045,90]
[354457489,1740519033727,-4615.6,0.00045,90]
[354457491,1740519033738,-2301.0,0.00045,90]
[354457493,1740519033750,-456.7858882,0.00045,90]
[354457496,1740519033762,-17606.40000001,0.00045,90]
[354457498,1740519033778,-2044.7135224,0.00045,90]
[354457501,1740519033797,-4567.5776061,0.00045,90]
[354457508,1740519038391,-709.35,0.000345,120]
[354457509,1740519038401,-6163.499125,0.00034989,2]
[354457510,1740519038410,-6163.499125,0.00038979,2]
[354457511,1740519038420,-2618.14895286,0.00041095,2]
[354457512,1740519038536,-581.69379805,0.00041095,2]
[354457525,1740519040548,-2963.65637409,0.00041095,2]
[354457526,1740519040558,-6163.499125,0.00041095,2]
[354457527,1740519040567,-6163.499125,0.00041369,2]
[354457528,1740519040577,-6163.499125,0.00041369,2]
[354457529,1740519040586,-6163.499125,0.00041643,2]
[354457530,1740519040596,-6163.499125,0.00041917,2]
[354457531,1740519040610,-6163.499125,0.00042191,2]
[354457532,1740519040619,-6163.499125,0.00042465,2]
[354457533,1740519040629,-60861.32911148,0.00045,90]
[354457534,1740519040639,-204.86,0.0004527,2]
[354457535,1740519040649,-401.34905113,0.00045314,10]
[354457536,1740519040658,-682.84,0.0004547,8]
[354457537,1740519040668,-477.73,0.00045673,2]
[354457538,1740519040677,-344.07,0.00045753,30]
[354457539,1740519040687,-150.0,0.00045753,30]
[354457540,1740519040697,-344.07,0.00045753,30]
[354457541,1740519040706,-150.0,0.00045753,30]
[354457542,1740519040716,-641.0,0.0004577,2]
[354457543,1740519040725,-150.0,0.0004577,2]
[354457544,1740519040734,-5000.0,0.000459,120]
[354457545,1740519040743,-1000.0,0.0004605,2]
[354457546,1740519040753,-196.12,0.0004605,2]
[354457547,1740519040763,-150.0,0.00046078,30]
[354457548,1740519040772,-150.0,0.00046078,30]
[354457549,1740519040781,-150.0,0.00046078,30]
[354457550,1740519040790,-150.0,0.00046078,30]
[354457551,1740519040800,-278.93,0.00046078,30]
[354457552,1740519040809,-150.0,0.00046178,30]
[354457553,1740519040818,-150.0,0.00046178,30]
[354457554,1740519040827,-150.47,0.00046178,30]
[354457555,1740519040837,-4114.0,0.000462,120]
[354457556,1740519040846,-192.2,0.00046237,2]
[354457557,1740519040855,-401.34905113,0.00046245,10]
[354457558,1740519040865,-348.41548964,0.00046285,2]
[354457559,1740519040874,-154.97,0.00046301,2]
[354457560,1740519040883,-150.0,0.00046561,30]
[354457561,1740519040895,-301.28,0.00046575,30]
[354457562,1740519040904,-344.07,0.00046575,30]
[354457563,1740519040914,-344.07,0.00046575,30]
[354457564,1740519040923,-300.0,0.00046575,30]
[354457565,1740519040933,-344.07,0.00046575,30]
[354457566,1740519040942,-150.0,0.00046575,30]
[354457567,1740519040951,-150.0,0.00046575,30]
[354457568,1740519040960,-344.07,0.00046575,30]
[354457569,1740519040969,-150.0,0.00046575,30]
[354457570,1740519040979,-150.0,0.00046575,30]
[354457571,1740519040988,-150.0,0.00046575,30]
[354457572,1740519040997,-344.07,0.00046575,30]
[354457573,1740519041007,-150.0,0.00046575,30]
[354457574,1740519041016,-150.0,0.00046575,30]
[354457575,1740519041025,-150.0,0.00046575,30]
[354457576,1740519041034,-344.07,0.00046575,30]
[354457577,1740519041043,-150.0,0.00046575,30]
[354457578,1740519041052,-150.0,0.00046575,30]
[354457579,1740519041063,-150.0,0.00046575,30]
[354457580,1740519041072,-344.07,0.00046575,30]
[354457581,1740519041081,-150.0,0.00046575,30]
[354457582,1740519041090,-154.8,0.00046575,30]
[354457583,1740519041100,-439.49,0.00046575,30]
[354457584,1740519041109,-150.0,0.00046575,30]
[354457585,1740519041118,-344.07,0.00046575,30]
[354457586,1740519041127,-150.0,0.00046575,30]
[354457587,1740519041139,-641.36,0.00046575,30]
[354457588,1740519041148,-344.07,0.00046575,30]
[354457589,1740519041158,-439.49,0.00046575,30]
[354457590,1740519041167,-150.0,0.00046575,30]
[354457591,1740519041177,-439.49,0.00046575,30]
[354457592,1740519041187,-344.07,0.00046575,30]
[354457593,1740519041197,-439.49,0.00046575,30]
[354457594,1740519041206,-150.0,0.00046575,30]
[354457595,1740519041215,-438.38,0.00046575,30]
[354457596,1740519041225,-150.0,0.00046575,30]
[354457597,1740519041234,-633.17,0.00046575,30]
[354457598,1740519041244,-150.0,0.00046575,30]
[354457599,1740519041254,-439.49,0.00046575,30]
[354457600,1740519041263,-439.49,0.00046575,30]
[354457601,1740519041273,-150.0,0.00046575,30]
[354457602,1740519041283,-300.0,0.00046575,30]
[354457603,1740519041292,-439.49,0.00046575,30]
[354457604,1740519041302,-150.0,0.00046575,30]
[354457605,1740519041311,-439.49,0.00046575,30]
[354457606,1740519041321,-150.0,0.00046575,30]
[354457607,1740519041331,-150.0,0.00046575,30]
[354457608,1740519041341,-439.49,0.00046575,30]
[354457609,1740519041349,-440.51,0.00046712,30]
[354457610,1740519041359,-881.02,0.00046712,30]
[354457611,1740519041369,-449.66,0.00046712,30]
[354457612,1740519041379,-600.0,0.000468,17]
[354457613,1740519041390,-202.95098845,0.00046889,71]
[354457614,1740519041399,-13918.35523307,0.00046889,27]
[354457615,1740519041409,-462.3047,0.0004689,2]
[354457616,1740519041419,-266.9422,0.0004689,2]
[354457617,1740519041428,-7064.687,0.0004689,2]
[354457618,1740519041437,-239.9145,0.0004689,2]
[354457619,1740519041447,-2258.04808045,0.0004689,15]
[354457620,1740519041456,-162.23488402,0.0004689,28]
[354457621,1740519041465,-359.2506063,0.0004689,2]
[354457622,1740519041475,-261.08168484,0.0004689,24]
[354457623,1740519041484,-483.6558,0.0004689,2]
[354457624,1740519041494,-397.2509,0.0004689,2]
[354457625,1740519041503,-4179.6641,0.0004689,2]